{"text_format":"1","workbook":"xlsx","n_sheets":19,"sheets":["NAVODILA","SPLOŠNO","DOSTOPNOST","UP_VSEBINE 1","UP_VSEBINE 2","UP_VSEBINE 3","UP_VSEBINE 4","UP VSEBINE 5","UP VSEBINE 6","UP_VSEBINE 7","UP_VSEBINE 8","UP_VSEBINE 9","UP_VSEBINE 10","UPORABNIKI","AKTIVNOSTI","KADRI","FINANCE","OPOMBE","matrika"],"not_rendered":{"charts":0,"images":0,"macros":1,"external_links":2,"defined_names":34,"comments":1,"pivot_tables":0},"unopened":[],"bounds":{"document_bytes":16777216,"sheet_cells":100000,"rows_first":2000,"rows_last":500,"rows_between":2000,"halvings":0,"cell_chars":16384,"cell_head_chars":4096},"cells_cut":0,"cells_raw":0,"read":"whole","date_system":"1900"}

{"sheet":"NAVODILA","index":0,"n_rows":56,"n_cols":11,"rows_kept":56,"cut":false,"hidden":false,"merged":[[0,0,0,8],[2,1,2,7],[4,1,4,7],[19,1,19,7]]}
["NAVODILA ZA IZPOLNJEVANJE"]
[]
[null,"Spoštovani, \npred vami je posodobljen obrazec za poročanje - Polletno poročilo o izvajanju socialnovarstvenega programa v obdobju od 1. 1. 2025 do 30. 6. 2025.\n\nObrazec vsebuje več listov, in sicer odvisno od vrste programa:\n- splošno, dostopnost, uporabniki, aktivnosti, kadri, finance, opombe.\n\nPOMEMBNO: \n- Da obrazec deluje nemoteno, ga morate najprej shraniti na disk, šele potem odpreti (ne odpirajte ga direktno iz e-maila oz. spleta).\n- Pri izpolnjevanju vas prosimo, da odgovarjate v za to namenjene celice (sive barve). Celice, označene z zeleno barvo so avtomatski seštevki oz. preverjanje, teh celic ne spreminjajte; celice, označene z rumeno barvo pa določajo izpolnitev kot izbirni seznam (kliknite na puščico v celici).\n\nV primeru tehničnih težav se lahko obrnete na IRSSV, in sicer na e-pošto: svp.irssv@siol.net. Če vam e-pošto zavrača, pri pošiljanju naredite stisnjeno datoteko zbirnika (npr.: .zip, .rar ipd)."]
[]
[null,"ZAČETEK: Prosimo, izberite skupino in podskupino vašega programa. \nKo boste označili vse korake, se vam bodo odprli zavihki za izpolnjevanje."]
[null,"Opomba: \nV kolikor niste prepričani, v katero podskupino spada program, pustite prazno oz. preverite v končnem poročilu na",null,null,null,null,"POVEZAVI"]
[]
[]
[]
[null,null,"KORAK 1",null,"KORAK 2"]
[null,null,"Prosimo, najprej izberite vašo skupino programov:",null,"Prosimo, izberite vašo podskupino programov:"]
[]
[]
[]
[]
[]
[]
[]
[]
[null,"KONEC: Ko boste z izpolnjevanjem končali, kliknite na spodnji gumb \"NATISNI\" in se bo obrazec avtomatsko shranil v PDF datoteko."]
[]
[]
[]
[]
[]
[]
[]
[]
[]
[]
[]
[]
[]
[]
[]
[]
[]
[]
[]
[]
[]
[]
[]
[]
[]
[]
[]
[]
[]
[null,"NASILJE","ZASVOJENI","DUŠEVNO ZDRAVJE","BREZDOMCI","OTROCI IN MLADOSTNIKI","STAREJŠI","INVALIDI","ROMI","DRUGI PROGRAMI","PROGRAMI SPECIALISTIČNE PODPORE ŽRTVAM KAZNIVIH DEJANJ"]
[null,"MATERINSKI DOMOVI","PREPOVEDANE DROGE – VISOKI PRAG","STANOVANJSKE SKUPINE","NAMESTITVENI PROGRAMI","DNEVNI CENTRI ZA OTROKE IN MLADOSTNIKE S PREVENTIVNIM DELOM IN SVETOVANJEM","PROGRAMI ZA STAREJŠE","PROGRAMI ZA SPODBUJANJE SOCIALNE VKLJUČENOSTI IN NEODVISNEGA ŽIVLJENJA INVALIDOV","PROGRAMI ZA ROME","DRUGI PROGRAMI","PROGRAMI SPECIALISTIČNE PODPORE ŽRTVAM KAZNIVIH DEJANJ"]
[null,"VARNE HIŠE, ZATOČIŠČA IN KRIZNI CENTRI","PREPOVEDANE DROGE - NIZKI PRAG","DNEVNI CENTRI","DNEVNI PROGRAMI","PREVENTIVNI PROGRAMI","PROGRAMI ZA OSEBE Z DEMENCO IN NJIHOVE SVOJCE"]
[null,"SVETOVALNICE","PREPOVEDANE DROGE – PREVENTIVNI PROGRAMI","INFORMACIJSKE PISARNE IN SVETOVALNICE","DELOŽACIJE","PROGRAMI TELEFONSKEGA SVETOVANJA"]
[null,"PROGRAMI PREVENTIVE","ALKOHOLIZEM","PROGRAMI TELEFONSKEGA SVETOVANJA"]
[null,"PROGRAMI TELEFONSKEGA SVETOVANJA","MOTNJE HRANJENJA","ZAGOVORNIŠTVO"]
[null,null,"PREPREČEVANJE PREKOMERNE RABE IKT"]

{"sheet":"SPLOŠNO","index":1,"n_rows":21,"n_cols":3,"rows_kept":21,"cut":false,"hidden":true,"merged":[[1,1,2,2],[0,1,0,3],[20,1,20,2]]}
[null,"Polletno poročilo o izvajanju javnega socialnovarstvenega programa \nv obdobju od 1. 1. 2025 do 30. 6. 2025 - JAVNI PROGRAMI"]
[null,"PROSIMO, DA POROČILO IZPOLNJUJETE KRATKO IN JEDRNATO, DRŽITE SE NAVODIL IN NE SPREMINJAJTE STRUKTURE OBRAZCA.\nIzpolnjen obrazec natisnite s klikom na gumb \"NATISNI V PDF\", ga (elektronsko) podpišite \nin posredujte na MDDSZ po elektronski pošti na: gp.mddsz@gov.si, torej podpisan PDF in Excel"]
[]
[]
[null,"Skupina, podskupina, evalvacija:",{"$f":"Skupina&\"; \"&NAVODILA!E16&\"; \"&NAVODILA!G16","v":"; ; "}]
[null,"Obdobje financiranja (izberite iz seznama):"]
[null,"Naziv izvajalca oz. organizacije:"]
[null,"Naziv programa: "]
[null,"Številka sklenjene pogodbe: "]
[null,"Naslov izvajalca oz. organizacije:"]
[null,"Telefon izvajalca, programa:                                                 "]
[null,"Elektronski naslov:"]
[null,"Spletna stran:"]
[null,"Tip organizacije, v kateri se izvaja program (izberite iz seznama):"]
[null,"Navedite skrbnika pogodbe na MDDSZ (naveden v pogodbi):"]
[]
[null,"Kraj in datum:"]
[]
[null,"Strokovni delavec/vodja programa + odgovorna oseba\n(navedite osebe in podpišite):"]
[]
[null,"Rok za predložitev polletnega poročila: najkasneje do 28. 7. 2025"]

{"sheet":"DOSTOPNOST","index":2,"n_rows":33,"n_cols":8,"rows_kept":33,"cut":false,"hidden":true,"merged":[[32,1,32,2],[2,1,2,8],[3,1,4,1],[3,2,4,2],[3,3,4,3],[3,4,4,4],[3,5,3,6],[3,7,4,7]]}
["DOSTOPNOST PROGRAMOV"]
[]
[1,"Prosimo navedite, v katerih občinah se izvaja program in vpišite število enot oz. lokacij programa v tej občini. Programi, ki imate nastanitve, vpišite še število kapacitet oz. postelj po občinah.\nOpomba: Programi telefonskega svetovanja/Programi za starejše, ki se izvajajo po celotni Sloveniji - označite na koncu 'DA' in pri občinah izvajanja vpišite občino sedeža organizacije oz. programa; \nProgrami, kjer se izvaja storitev v odprtih stanovanjskih skupinah oz. na domu uporabnika: teh lokacij ne beležite med občine, samo navedite jih v opombo."]
[null,null,"Občina \n(izberite iz seznama):","Vpišite skupno število enot oz. lokacij v občini","Prosimo, navedite, kaj vse ste zajeli \n(npr. 3 lokacije terenskega dela in 1 enota DC; 1 lokacija sedež in 1 enota SS)","ŠTEVILO PRENOČITVENIH KAPACITET \nNA DAN 30. 6., PO OBČINAH",null,"OPOMBA "]
[null,null,null,null,null,"Število formalno priznanih prenočitvenih kapacitet - postelj","Število rezervnih prenočitvenih kapacitet - postelj"]
[null,"OBČINA IZVAJANJA 1"]
[null,"OBČINA IZVAJANJA 2"]
[null,"OBČINA IZVAJANJA 3"]
[null,"OBČINA IZVAJANJA 4"]
[null,"OBČINA IZVAJANJA 5"]
[null,"OBČINA IZVAJANJA 6"]
[null,"OBČINA IZVAJANJA 7"]
[null,"OBČINA IZVAJANJA 8"]
[null,"OBČINA IZVAJANJA 9"]
[null,"OBČINA IZVAJANJA 10"]
[null,"OBČINA IZVAJANJA 11"]
[null,"OBČINA IZVAJANJA 12"]
[null,"OBČINA IZVAJANJA 13"]
[null,"OBČINA IZVAJANJA 14"]
[null,"OBČINA IZVAJANJA 15"]
[null,"OBČINA IZVAJANJA 16"]
[null,"OBČINA IZVAJANJA 17"]
[null,"OBČINA IZVAJANJA 18"]
[null,"OBČINA IZVAJANJA 19"]
[null,"OBČINA IZVAJANJA 20"]
[null,"OBČINA IZVAJANJA 21"]
[null,"OBČINA IZVAJANJA 22"]
[null,"OBČINA IZVAJANJA 23"]
[null,"OBČINA IZVAJANJA 24"]
[null,"OBČINA IZVAJANJA 25"]
[null,"Skupaj",{"$f":"COUNTA(C6:C30)","v":0},{"$f":"SUM(D6:D30)","v":0},null,{"$f":"SUM(F6:F30)","v":0},{"$f":"SUM(G6:G30)","v":0}]
[]
[null,"Program se izvaja po celotni Sloveniji \n(izberite iz seznama):"]

{"sheet":"UP_VSEBINE 1","index":3,"n_rows":16,"n_cols":8,"rows_kept":16,"cut":false,"hidden":true,"merged":[[0,0,0,8],[14,1,14,7],[1,1,1,8]]}
["UPORABNIKI GLEDE NA VSEBINE - za obdobje od 1. 1. 2025 do 30. 6. 2025"]
[null,"Prosimo, navedite število kontinuiranih, občasnih uporabnikov, kot ste prijavili v razpisu in število dejanskih uporabnikov v obdobju od 1. 1. 2025 do 30. 6. 2025, kot izhaja iz poročanja za zahtevke MDDSZ. V primeru odstopanj pojasnite, zakaj prihaja do tega.\nOpomba: Število vseh različnih uporabnikov v letu ni nujno enako seštevku kontinuiranih in občasnih uporabnikov skupaj, saj uporabnik lahko \"kroži\" med vsebinami programa."]
[1,"Programi za preprečevanje nasilja, programi za pomoč žrtvam nasilja in programi za delo s povzročitelji nasilja:","PRIJAVA - Število kontinuiranih uporabnikov","PRIJAVA - Število občasnih uporabnikov","DEJANSKO - Število kontinuiranih uporabnikov","DEJANSKO - Število občasnih uporabnikov","POJASNILO - v primeru več kot 10 % odstopanja števila uporabnikov od prijave na razpis, pojasnite razloge za to","SKUPAJ"]
[null,"Programi kriznih centrov",null,null,null,null,null,{"$f":"C4+D4","v":0}]
[null,"Programi materinskih domov ali materinskih domov s prehodnimi bivalnimi enotami",null,null,null,null,null,0]
[null,"Programi varnih hiš in zatočišč ",null,null,null,null,null,0]
[null,"Programi, namenjeni obravnavi žrtev nasilja (informacijski in svetovalni programi)",null,null,null,null,null,0]
[null,"Programi, namenjeni celostni obravnavi žrtev nasilja (informacijski in svetovalni programi ter 24/7 telefonska linija) ",null,null,null,null,null,0]
[null,"Programi, namenjeni obravnavi žrtev spolnega nasilja",null,null,null,null,null,0]
[null,"Programi, namenjeni povzročiteljem nasilja",null,null,null,null,null,0]
[null,"Programi, namenjeni otrokom in mladostnikom, povzročiteljem nasilja, vključno z medvrstniškim nasiljem",null,null,null,null,null,0]
[null,"Programi, namenjeni povzročiteljem nasilja v romski skupnosti",null,null,null,null,null,0]
[null,"Preventivni programi na področju preprečevanja nasilja nad starejšimi",null,null,null,null,null,0]
[null,"Programi, namenjeni celostni obravnavi žrtev nasilja nad invalidi (ki vsebujejo informacijski in svetovalni del programa kot tudi terensko delo in namestitvene kapacitete)",null,null,null,null,null,0]
[null,"po potrebi vstavite vrstice in vpišite vsebine, ki niso navedene zgoraj (starejši razpisi od leta 2025)"]
[null,null,{"$f":"SUM(C4:C14)","v":0},{"$f":"SUM(D4:D14)","v":0},{"$f":"SUM(E4:E14)","v":0},{"$f":"SUM(F4:F14)","v":0}]

{"sheet":"UP_VSEBINE 2","index":4,"n_rows":26,"n_cols":8,"rows_kept":26,"cut":false,"hidden":true,"merged":[[0,0,0,8],[1,1,1,8],[24,1,24,7]]}
["UPORABNIKI GLEDE NA VSEBINE - za obdobje od 1. 1. 2025 do 30. 6. 2025"]
[null,"Prosimo, navedite število kontinuiranih, občasnih uporabnikov, kot ste prijavili v razpisu in število dejanskih uporabnikov v obdobju od 1. 1. 2025 do 30. 6. 2025, kot izhaja iz poročanja za zahtevke MDDSZ. V primeru odstopanj pojasnite, zakaj prihaja do tega.\nOpomba: Število vseh različnih uporabnikov v letu ni nujno enako seštevku kontinuiranih in občasnih uporabnikov skupaj, saj uporabnik lahko \"kroži\" med vsebinami programa."]
[2,"Programi na področju preprečevanja zasvojenosti, ki so namenjeni uporabnikom prepovedanih drog, osebam, ki so se znašle v socialnih stiskah zaradi alkoholizma in osebam, ki imajo težave na področju motenj hranjenja ter drugih oblik zasvojenosti:","PRIJAVA - Število kontinuiranih uporabnikov","PRIJAVA - Število občasnih uporabnikov","DEJANSKO - Število kontinuiranih uporabnikov","DEJANSKO - Število občasnih uporabnikov","POJASNILO - v primeru več kot 10 % odstopanja števila uporabnikov od prijave na razpis, pojasnite razloge za to","SKUPAJ"]
[null,"2.1 Visokopražni programi:"]
[null,"(Visokopražni) terapevtski programi (komune), namenjene spreminjanju in utrjevanju življenja brez drog, ki omogočajo nastanitev uporabnikov",null,null,null,null,null,{"$f":"C5+D5","v":0}]
[null,"Stanovanjske skupine, namenjene reintegraciji, pri čemer uporabnik lahko živi v stanovanjski skupini ali v samostojni enoti",null,null,null,null,null,0]
[null,"Sprejemni centri visokopražnih programov in programov brez nastanitve za različne oblike zasvojenosti pri že ogroženih osebah, ki poleg informiranja in svetovanja, motivirajo in spodbujajo uporabnike za abstinenco in spremembo načina življenja",null,null,null,null,null,0]
[null,"Programi zmanjševanja škode na področju drog med mladimi in mlajšimi odraslimi ",null,null,null,null,null,0]
[null,"Progami, namenjeni preprečevanju razvoja različnih oblik zasvojenosti pri ogroženih otrocih in mladostnikih",null,null,null,null,null,0]
[null,"Programi, namenjeni spreminjanju in utrjevanju življenja brez drog – terapevtske skupnosti (24-urna obravnava)",null,null,null,null,null,0]
[null,"Terapevtski (visokopražni) programi brez nastanitve in dnevni centri",null,null,null,null,null,0]
[null,"Programi za reintegracijo uporabnikov v družbo",null,null,null,null,null,0]
[null,"2.2 Programi zmanjševanja škode (nizkopražni programi za uživalce prepovedanih drog, kamor sodijo: dnevni centri, svetovalnice, terensko delo, sprejemališča in zavetišča za brezdomne uživalce drog ipd.):"]
[null,"Nizkopražni programi, namenjeni uživalcem drog, mrežo centrov za svetovanje s terenskim delom za pomoč zasvojenim s prepovedanimi drogami, potrebnih vsakodnevne obravnave, ki lahko vključujejo psihosocialno pomoč (dnevni in drop-in centri ali terensko delo",null,null,null,null,null,0]
[null,"Programi zavetišč s prenočitvenimi kapacitetami in z nočnim dežurstvom za brezdomne uživalce nedovoljenih drog, v katerih gre za najmanj 16 urno obravnavo uporabnikov",null,null,null,null,null,0]
[null,"Nizkopražni programi za uživalke drog s prenočitvenimi kapacitetami in svetovanje s terenskim delom za pomoč zasvojenim s prepovedanimi drogami potrebnih vsakodnevne obravnave",null,null,null,null,null,0]
[null,"Nizkopražni programi, namenjeni mladim uživalcem drog "]
[null,"2.3 Programi povezani z alkoholizmom:"]
[null,"Programi, namenjeni osebam, ki so se znašle v socialnih stiskah zaradi alkoholizma (informacijski in svetovalni programi, terapevtski programi, dnevni centri), ",null,null,null,null,null,0]
[null,"Program, v katerih poteka delo v obliki rednih tedenskih srečanj skupin, v katerih je od 8 do 12 uporabnikov in pri katerih gre za spreminjanje ter utrjevanje novih vedenjskih in odnosnih vzorcev",null,null,null,null,null,0]
[null,"Programi zmanjševanja škode zaradi uživanja alkohola za mlade in svetovanje s terenskim delom ter neposrednimi spletnimi stiki",null,null,null,null,null,0]
[null,"2.4 Programi na področju motenj hranjenja ali drugih oblik zasvojenosti (zasvojenost z igrami na srečo, zasvojenost z digitalnimi napravami, spletom in spletnimi storitvami ipd…):"]
[null,"Programi za osebe, ki imajo težave na področju motenj hranjenja (dnevni centri, pisarne za svetovanje in informiranje)",null,null,null,null,null,0]
[null,"Programi za osebe, ki imajo težave na področju drugih oblik zasvojenosti (dnevni centri, pisarne za svetovanje in informiranje ter terensko delo)",null,null,null,null,null,0]
[null,"po potrebi vstavite vrstice in vpišite vsebine, ki niso navedene zgoraj (starejši razpisi od leta 2025)"]
[null,null,{"$f":"SUM(C4:C24)","v":0},{"$f":"SUM(D4:D24)","v":0},0,0]

{"sheet":"UP_VSEBINE 3","index":5,"n_rows":14,"n_cols":8,"rows_kept":14,"cut":false,"hidden":true,"merged":[[0,0,0,8],[1,1,1,8],[12,1,12,7]]}
["UPORABNIKI GLEDE NA VSEBINE - za obdobje od 1. 1. 2025 do 30. 6. 2025"]
[null,"Prosimo, navedite število kontinuiranih, občasnih uporabnikov, kot ste prijavili v razpisu in število dejanskih uporabnikov v obdobju od 1. 1. 2025 do 30. 6. 2025, kot izhaja iz poročanja za zahtevke MDDSZ. V primeru odstopanj pojasnite, zakaj prihaja do tega.\nOpomba: Število vseh različnih uporabnikov v letu ni nujno enako seštevku kontinuiranih in občasnih uporabnikov skupaj, saj uporabnik lahko \"kroži\" med vsebinami programa."]
[3,"Programi na področju duševnega zdravja: ","PRIJAVA - Število kontinuiranih uporabnikov","PRIJAVA - Število občasnih uporabnikov","DEJANSKO - Število kontinuiranih uporabnikov","DEJANSKO - Število občasnih uporabnikov","POJASNILO - v primeru več kot 10 % odstopanja števila uporabnikov od prijave na razpis, pojasnite razloge za to","SKUPAJ"]
[null,"Stanovanjske skupine s celovito celodnevno podporo (12 ur)",null,null,null,null,null,{"$f":"C4+D4","v":0}]
[null,"Prehodne stanovanjske skupine ",null,null,null,null,null,0]
[null,"Prehodne stanovanjske skupine za mlade (med 18 in 30 let)",null,null,null,null,null,0]
[null,"Odprte stanovanjske skupine skupaj s podporo v domačem okolju, pri čemer uporabnik lahko živi v stanovanjski skupini ali v samostojni enoti",null,null,null,null,null,0]
[null,"Dnevni centri ",null,null,null,null,null,0]
[null,"Dnevni centri, ki vključujejo skupine za samopomoč ",null,null,null,null,null,0]
[null,"Programi psihosocialnega svetovanja, informiranja in terenskega dela (PIS)",null,null,null,null,null,0]
[null,"Programi zagovorništva ",null,null,null,null,null,0]
[null,"Programi telefonskega svetovanja ",null,null,null,null,null,0]
[null,"po potrebi vstavite vrstice in vpišite vsebine, ki niso navedene zgoraj (starejši razpisi od leta 2025)"]
[null,null,{"$f":"SUM(C4:C12)","v":0},{"$f":"SUM(D4:D12)","v":0},0,0]

{"sheet":"UP_VSEBINE 4","index":6,"n_rows":9,"n_cols":8,"rows_kept":9,"cut":false,"hidden":true,"merged":[[0,0,0,8],[1,1,1,8],[7,1,7,7]]}
["UPORABNIKI GLEDE NA VSEBINE - za obdobje od 1. 1. 2025 do 30. 6. 2025"]
[null,"Prosimo, navedite število kontinuiranih, občasnih uporabnikov, kot ste prijavili v razpisu in število dejanskih uporabnikov v obdobju od 1. 1. 2025 do 30. 6. 2025, kot izhaja iz poročanja za zahtevke MDDSZ. V primeru odstopanj pojasnite, zakaj prihaja do tega.\nOpomba: Število vseh različnih uporabnikov v letu ni nujno enako seštevku kontinuiranih in občasnih uporabnikov skupaj, saj uporabnik lahko \"kroži\" med vsebinami programa."]
[4,"Programi za brezdomce: ","PRIJAVA - Število kontinuiranih uporabnikov","PRIJAVA - Število občasnih uporabnikov","DEJANSKO - Število kontinuiranih uporabnikov","DEJANSKO - Število občasnih uporabnikov","POJASNILO - v primeru več kot 10 % odstopanja števila uporabnikov od prijave na razpis, pojasnite razloge za to","SKUPAJ"]
[null,"Zavetišča s prenočitvenimi kapacitetami in z nočnim dežurstvom",null,null,null,null,null,{"$f":"C4+D4","v":0}]
[null,"Zavetišča s prenočitvenimi kapacitetami odprtega tipa ",null,null,null,null,null,{"$f":"C5+D5","v":0}]
[null,"Sprejemališča ali/in dnevni centri z dnevno obravnavo, terenskim delom in dodatnimi aktivnostmi",null,null,null,null,null,{"$f":"C6+D6","v":0}]
[null,"Programi nastanitvene stanovanjske podpore ",null,null,null,null,null,{"$f":"C7+D7","v":0}]
[null,"po potrebi vstavite vrstice in vpišite vsebine, ki niso navedene zgoraj (starejši razpisi od leta 2025)"]
[null,null,{"$f":"SUM(C4:C7)","v":0},{"$f":"SUM(D4:D7)","v":0},0,0]

{"sheet":"UP VSEBINE 5","index":7,"n_rows":7,"n_cols":8,"rows_kept":7,"cut":false,"hidden":true,"merged":[[0,0,0,8],[1,1,1,8],[5,1,5,7]]}
["UPORABNIKI GLEDE NA VSEBINE - za obdobje od 1. 1. 2025 do 30. 6. 2025"]
[null,"Prosimo, navedite število kontinuiranih, občasnih uporabnikov, kot ste prijavili v razpisu in število dejanskih uporabnikov v obdobju od 1. 1. 2025 do 30. 6. 2025, kot izhaja iz poročanja za zahtevke MDDSZ. V primeru odstopanj pojasnite, zakaj prihaja do tega.\nOpomba: Število vseh različnih uporabnikov v letu ni nujno enako seštevku kontinuiranih in občasnih uporabnikov skupaj, saj uporabnik lahko \"kroži\" med vsebinami programa."]
[5,"Programi za otroke in mladostnike, prikrajšane za primerno družinsko življenje ter programi, namenjeni otrokom in mladostnikom s težavami v odraščanju:","PRIJAVA - Število kontinuiranih uporabnikov","PRIJAVA - Število občasnih uporabnikov","DEJANSKO - Število kontinuiranih uporabnikov","DEJANSKO - Število občasnih uporabnikov","POJASNILO - v primeru več kot 10 % odstopanja števila uporabnikov od prijave na razpis, pojasnite razloge za to","SKUPAJ"]
[null,"Dnevni centri za otroke in mladostnike s terenskim delom",null,null,null,null,null,{"$f":"C4+D4","v":0}]
[null,"Dnevni centri za otroke in mladostnike s terenskim delom, ki vključujejo tudi svetovanje",null,null,null,null,null,{"$f":"C5+D5","v":0}]
[null,"po potrebi vstavite vrstice in vpišite vsebine, ki niso navedene zgoraj (starejši razpisi od leta 2025)"]
[null,null,{"$f":"SUM(C4:C5)","v":0},{"$f":"SUM(D4:D5)","v":0},0,0]

{"sheet":"UP VSEBINE 6","index":8,"n_rows":9,"n_cols":8,"rows_kept":9,"cut":false,"hidden":true,"merged":[[0,0,0,8],[1,1,1,8],[7,1,7,7]]}
["UPORABNIKI GLEDE NA VSEBINE - za obdobje od 1. 1. 2025 do 30. 6. 2025"]
[null,"Prosimo, navedite število kontinuiranih, občasnih uporabnikov, kot ste prijavili v razpisu in število dejanskih uporabnikov v obdobju od 1. 1. 2025 do 30. 6. 2025, kot izhaja iz poročanja za zahtevke MDDSZ. V primeru odstopanj pojasnite, zakaj prihaja do tega.\nOpomba: Število vseh različnih uporabnikov v letu ni nujno enako seštevku kontinuiranih in občasnih uporabnikov skupaj, saj uporabnik lahko \"kroži\" med vsebinami programa."]
[6,"Programi za starejše, ki jim grozi socialna izključenost ali potrebujejo podporo in pomoč v vsakodnevnem življenju:","PRIJAVA - Število kontinuiranih uporabnikov","PRIJAVA - Število občasnih uporabnikov","DEJANSKO - Število kontinuiranih uporabnikov","DEJANSKO - Število občasnih uporabnikov","POJASNILO - v primeru več kot 10 % odstopanja števila uporabnikov od prijave na razpis, pojasnite razloge za to","SKUPAJ"]
[null,"Programi svetovanja s terenskim delom, namenjene osebam z demenco in njihovim svojcem",null,null,null,null,null,{"$f":"C4+D4","v":0}]
[null,"Programi pomoči, namenjene osebam z demenco in njihovim svojcem",null,null,null,null,null,{"$f":"C5+D5","v":0}]
[null,"Programi dnevnih centrov za starejše",null,null,null,null,null,{"$f":"C6+D6","v":0}]
[null,"Programi prostovoljskega dela starejših ",null,null,null,null,null,{"$f":"C7+D7","v":0}]
[null,"po potrebi vstavite vrstice in vpišite vsebine, ki niso navedene zgoraj (starejši razpisi od leta 2025)"]
[null,null,{"$f":"SUM(C4:C7)","v":0},{"$f":"SUM(D4:D7)","v":0},0,0]

{"sheet":"UP_VSEBINE 7","index":9,"n_rows":9,"n_cols":8,"rows_kept":9,"cut":false,"hidden":true,"merged":[[0,0,0,8],[1,1,1,8],[7,1,7,7]]}
["UPORABNIKI GLEDE NA VSEBINE - za obdobje od 1. 1. 2025 do 30. 6. 2025"]
[null,"Prosimo, navedite število kontinuiranih, občasnih uporabnikov, kot ste prijavili v razpisu in število dejanskih uporabnikov v obdobju od 1. 1. 2025 do 30. 6. 2025, kot izhaja iz poročanja za zahtevke MDDSZ. V primeru odstopanj pojasnite, zakaj prihaja do tega.\nOpomba: Število vseh različnih uporabnikov v letu ni nujno enako seštevku kontinuiranih in občasnih uporabnikov skupaj, saj uporabnik lahko \"kroži\" med vsebinami programa."]
[7,"Programi za podporno bivanje invalidov in mreža drugih programov za organizacijo in spodbujanje samostojnega življenja invalidov: ","PRIJAVA - Število kontinuiranih uporabnikov","PRIJAVA - Število občasnih uporabnikov","DEJANSKO - Število kontinuiranih uporabnikov","DEJANSKO - Število občasnih uporabnikov","POJASNILO - v primeru več kot 10 % odstopanja števila uporabnikov od prijave na razpis, pojasnite razloge za to","SKUPAJ"]
[null,"Prehodne bivalne skupnosti za invalide (letne pogodbe z možnostjo podaljšanja)",null,null,null,null,null,{"$f":"C4+D4","v":0}]
[null,"Programi, namenjeni ohranjanju socialnih veščin",null,null,null,null,null,{"$f":"C5+D5","v":0}]
[null,"Informacijski in svetovalni programi, programi koordinacije, podpore in izvajanja pomoči in samopomoči za invalide",null,null,null,null,null,{"$f":"C6+D6","v":0}]
[null,"Svetovalna pisarna s terenskim delom  in namestitvijo ",null,null,null,null,null,{"$f":"C7+D7","v":0}]
[null,"po potrebi vstavite vrstice in vpišite vsebine, ki niso navedene zgoraj (starejši razpisi od leta 2025)"]
[null,null,{"$f":"SUM(C4:C7)","v":0},{"$f":"SUM(D4:D7)","v":0},0,0]

{"sheet":"UP_VSEBINE 8","index":10,"n_rows":7,"n_cols":8,"rows_kept":7,"cut":false,"hidden":true,"merged":[[0,0,0,8],[1,1,1,8],[5,1,5,7]]}
["UPORABNIKI GLEDE NA VSEBINE - za obdobje od 1. 1. 2025 do 30. 6. 2025"]
[null,"Prosimo, navedite število kontinuiranih, občasnih uporabnikov, kot ste prijavili v razpisu in število dejanskih uporabnikov v obdobju od 1. 1. 2025 do 30. 6. 2025, kot izhaja iz poročanja za zahtevke MDDSZ. V primeru odstopanj pojasnite, zakaj prihaja do tega.\nOpomba: Število vseh različnih uporabnikov v letu ni nujno enako seštevku kontinuiranih in občasnih uporabnikov skupaj, saj uporabnik lahko \"kroži\" med vsebinami programa."]
[8,"Programi socialnega vključevanja Romov: ","PRIJAVA - Število kontinuiranih uporabnikov","PRIJAVA - Število občasnih uporabnikov","DEJANSKO - Število kontinuiranih uporabnikov","DEJANSKO - Število občasnih uporabnikov","POJASNILO - v primeru več kot 10 % odstopanja števila uporabnikov od prijave na razpis, pojasnite razloge za to","SKUPAJ"]
[null,"Dnevni center za otroke in mladostnike",null,null,null,null,null,{"$f":"C4+D4","v":0}]
[null,"Ostali programi (informacijski in svetovalni programi, krepitev socialnih kompetenc ter delo na terenu)",null,null,null,null,null,{"$f":"C5+D5","v":0}]
[null,"po potrebi vstavite vrstice in vpišite vsebine, ki niso navedene zgoraj (starejši razpisi od leta 2025)"]
[null,null,{"$f":"SUM(C4:C5)","v":0},{"$f":"SUM(D4:D5)","v":0},0,0]

{"sheet":"UP_VSEBINE 9","index":11,"n_rows":5,"n_cols":8,"rows_kept":5,"cut":false,"hidden":true,"merged":[[0,0,0,8],[1,1,1,8],[4,1,4,7]]}
["UPORABNIKI GLEDE NA VSEBINE - za obdobje od 1. 1. 2025 do 30. 6. 2025"]
[null,"Prosimo, navedite število kontinuiranih, občasnih uporabnikov, kot ste prijavili v razpisu in število dejanskih uporabnikov v obdobju od 1. 1. 2025 do 30. 6. 2025, kot izhaja iz poročanja za zahtevke MDDSZ. V primeru odstopanj pojasnite, zakaj prihaja do tega.\nOpomba: Število vseh različnih uporabnikov v letu ni nujno enako seštevku kontinuiranih in občasnih uporabnikov skupaj, saj uporabnik lahko \"kroži\" med vsebinami programa."]
[9,"Programi specialistične podpore žrtvam kaznivih dejanj (če ni zagotovljena s preostalimi socialnovarstvenimi programi):","PRIJAVA - Število kontinuiranih uporabnikov","PRIJAVA - Število občasnih uporabnikov","DEJANSKO - Število kontinuiranih uporabnikov","DEJANSKO - Število občasnih uporabnikov","POJASNILO - v primeru več kot 10 % odstopanja števila uporabnikov od prijave na razpis, pojasnite razloge za to","SKUPAJ"]
[null,"Programi specialistične podpore žrtvam kaznivih dejanj (informacijski in svetovalni program ter zagovorništvo) v skladu z Direktivo 2012/29/EU, razen če je tovrstna specialistična podpora zagotovljena že v okviru drugih razpisanih področij tega javnega razpisa",null,null,null,null,null,{"$f":"C4+D4","v":0}]
[null,"po potrebi vstavite vrstice in vpišite vsebine, ki niso navedene zgoraj (starejši razpisi od leta 2025)"]

{"sheet":"UP_VSEBINE 10","index":12,"n_rows":12,"n_cols":8,"rows_kept":12,"cut":false,"hidden":true,"merged":[[0,0,0,8],[1,1,1,8],[10,1,10,7]]}
["UPORABNIKI GLEDE NA VSEBINE - za obdobje od 1. 1. 2025 do 30. 6. 2025"]
[null,"Prosimo, navedite število kontinuiranih, občasnih uporabnikov, kot ste prijavili v razpisu in število dejanskih uporabnikov v obdobju od 1. 1. 2025 do 30. 6. 2025, kot izhaja iz poročanja za zahtevke MDDSZ. V primeru odstopanj pojasnite, zakaj prihaja do tega.\nOpomba: Število vseh različnih uporabnikov v letu ni nujno enako seštevku kontinuiranih in občasnih uporabnikov skupaj, saj uporabnik lahko \"kroži\" med vsebinami programa."]
[10,"Drugi programi, ki so namenjeni odpravljanju socialnih stisk ljudi:","PRIJAVA - Število kontinuiranih uporabnikov","PRIJAVA - Število občasnih uporabnikov","DEJANSKO - Število kontinuiranih uporabnikov","DEJANSKO - Število občasnih uporabnikov","POJASNILO - v primeru več kot 10 % odstopanja števila uporabnikov od prijave na razpis, pojasnite razloge za to","SKUPAJ"]
[null,"Svetovalno informacijski programi",null,null,null,null,null,{"$f":"C4+D4","v":0}]
[null,"Programi, namenjeni osebam v dolgovih in deložacijah",null,null,null,null,null,0]
[null,"Programi svetovanja, nudenja psihosocialne pomoči, socialnega vključevanja, opolnomočenja in zagovorništva, namenjene prosilcem za mednarodno zaščito, beguncem, ekonomskim migrantom in njihovim družinskim članom ",null,null,null,null,null,0]
[null,"Programi prostovoljstva",null,null,null,null,null,0]
[null,"Dnevni centri za osebe, ki so prosilci, ali jim je bila dodeljena mednarodna zaščita Republike Slovenije v krajih, kjer so te osebe nastanjene ",null,null,null,null,null,0]
[null,"Programi, namenjeni žalujočim odraslim, otrokom in mladostnikom",null,null,null,null,null,0]
[null,"Programi spremljanja umirajočih bolnikov in njihovih svojcev na domu",null,null,null,null,null,0]
[null,"po potrebi vstavite vrstice in vpišite vsebine, ki niso navedene zgoraj (starejši razpisi od leta 2025)"]
[null,null,{"$f":"SUM(C4:C10)","v":0},{"$f":"SUM(D4:D10)","v":0},0,0]

{"sheet":"UPORABNIKI","index":13,"n_rows":38,"n_cols":6,"rows_kept":38,"cut":false,"hidden":true,"merged":[[0,0,0,9],[2,0,2,9],[4,1,4,8],[27,1,27,2],[5,1,5,2],[37,1,37,8],[11,1,11,2],[8,1,8,8],[9,1,9,2],[10,1,10,2],[12,1,12,2],[14,1,14,8],[23,1,23,8],[26,1,26,8],[28,1,29,1],[30,1,33,1],[35,1,35,2],[36,1,36,2],[36,3,36,5]]}
["VSEBINSKO POROČILO - UPORABNIKI - za obdobje od 1. 1. 2025 do 30. 6. 2025"]
[]
["Pri izpolnjevanju bodite pozorni, da se vsi podatki, ki jih vpisujete, nanašajo na obdobje od 1. 1. 2025 do 30. 6. 2025."]
[]
[1,"Prosimo, navedite število uporabnikov, en uporabnik se šteje samo enkrat na leto."]
[null,"Skupaj število VSEH RAZLIČNIH uporabnikov (kontinuirani + občasni)"]
[]
[]
[2,"Če program obsega tudi delo v skupinah (kjer je strošek sofinanciranja skupin določen po izračunu v javnem razpisu), prosimo navedite naslednje:"]
[null,"Število skupin"]
[null,"Povprečno število uporabnikov na skupino"]
[null,"Število srečanj"]
[]
[]
[3,"Prosimo, navedite število vključenih uporabnikov po mesecih ter povprečno število ur aktivne* vključenosti uporabnikov v posamezne dejavnosti programa na mesec, ki so vključeni v t. i. glavni del programa."]
[null,"Mesec","Število vseh vključenih uporabnikov","Povprečno število ur aktivne* vključenosti enega uporabnika na mesec"]
[null,"januar "]
[null,"februar "]
[null,"marec "]
[null,"april "]
[null,"maj "]
[null,"junij "]
[null,"Povprečno število na mesec",{"$f":"AVERAGE(C17:C22)","v":{"$error":"#DIV/0!"}},{"$f":"AVERAGE(D17:D22)","v":{"$error":"#DIV/0!"}}]
[null,"Opomba:\n*Aktivna vključenost pomeni, da je uporabnik aktivno vključen v dejavnosti programa. Torej pri programih, ki uporabnikom nudijo bivanje, ne vpisujete 720 ur na mesec, ampak število ur aktivne vključenosti uporabnika v program na mesec."]
[]
[]
[4,"Prosimo, navedite število VSEH RAZLIČNIH uporabnikov glede na spol in starost. Prosimo zapišite oceno, če nimate točnih podatkov."]
[null,"Starostna skupina",null,"Število moških","Število žensk","Spol ni znan oz. ni definiran"]
[null,"MLADOLETNI","do vključno 15 let"]
[null,null,"nad 15 let do 18 let"]
[null,"POLNOLETNI","nad 18 let do 35 let"]
[null,null,"nad 35 let do 50 let"]
[null,null,"nad 50 let do 65 let"]
[null,null,"nad 65 let"]
[null,"ANONIMNI","starost in/ali spol nista znana oz. definirana"]
[null,"Skupaj različnih uporabnikov ",null,{"$f":"SUM(D29:D35)","v":0},{"$f":"SUM(E29:E35)","v":0},{"$f":"SUM(F29:F35)","v":0}]
[null,"Ujemanje s prvo preglednico: ","Ujemanje: ",{"$f":"IF((D6=(D36+E36+F36)),\"SEŠTEVEK SE UJEMA\",\"SEŠTEVEK SE NE UJEMA - PREVERITE\")","v":"SEŠTEVEK SE UJEMA"}]
[null,"Opomba:\nIzvajalci, ki uporabljate bazo EVAPRO in beležite drugačne starostne skupine, lahko ustvarite tabelo za izpis z navedenimi starostnimi skupinami - podrobno v »Navodilih za uporabo baze Evapro© - februar 2025«, poglavje »9.1.4 Po star. skupinah«, str. 87."]

{"sheet":"AKTIVNOSTI","index":14,"n_rows":19,"n_cols":5,"rows_kept":19,"cut":false,"hidden":true,"merged":[[4,1,4,8],[17,1,17,4],[0,0,0,9],[2,0,2,9]]}
["VSEBINSKO POROČILO - PODPROGRAMI - za obdobje od 1. 1. 2025 do 30. 6. 2025"]
[]
["Pri izpolnjevanju bodite pozorni, da se vsi podatki, ki jih vpisujete, nanašajo na obdobje od 1. 1. 2025 do 30. 6. 2025."]
[]
[1,"Če v okviru programa izvajate dodatne aktivnosti (npr. predavanja, e-svetovanje, skupina za starše ipd.), ki niso del programa, prosimo navedite število uporabnikov za vsako aktivnost posebej. V aktivnostih, kjer beležite število uporabnikov, izpolnite stolpec C in E. V aktivnostih, kjer pa beležite le število izvajanj, izpolnite le stolpec D. Če beležite opravljene storitve in NE števila uporabnikov (npr. telefonski klici), posebej poudarite ali gre za storitev ali uporabnika.\nOpomba: Uporabnikov iz teh dejavnosti ne štejte k številu programa na listu \"UPORABNIKI\", saj morajo že biti všteti pri kontinuiranih oz. občasnih uporabnikih."]
[null,"Aktivnosti","Število različnih uporabnikov v letu","Število storitev/dogodkov v letu","Povprečno število ur vključenosti enega uporabnika na mesec/\npri telefonskih klicih navedite povprečni čas enega pogovora"]
[]
[]
[]
[]
[]
[]
[]
[]
[]
[]
[]
[null,"po potrebi vstavite vrstice"]
[null,"Skupaj",{"$f":"SUM(C7:C18)","v":0},{"$f":"SUM(D7:D18)","v":0},{"$f":"SUM(E7:E18)","v":0}]

{"sheet":"KADRI","index":15,"n_rows":58,"n_cols":8,"rows_kept":58,"cut":false,"hidden":true,"merged":[[15,7,15,8],[0,0,0,9],[2,0,2,9],[25,7,25,8],[26,7,26,8],[20,7,20,8],[21,7,21,8],[22,7,22,8],[4,1,4,8],[13,7,13,8],[14,7,14,8],[23,7,23,8],[24,7,24,8],[12,1,12,8],[16,7,16,8],[17,7,17,8],[49,1,49,2],[55,7,55,8],[56,7,56,8],[57,1,57,8],[47,1,47,8],[18,7,18,8],[19,7,19,8],[27,7,27,8],[28,7,28,8],[29,7,29,8],[30,7,30,8],[44,1,44,8],[31,7,31,8],[32,7,32,8],[42,7,42,8],[43,7,43,8],[38,7,38,8],[39,7,39,8],[40,7,40,8],[41,7,41,8],[33,7,33,8]]}
["VSEBINSKO POROČILO - KADRI - za obdobje od 1. 1. 2025 do 30. 6. 2025"]
[]
["Pri izpolnjevanju bodite pozorni, da se vsi podatki, ki jih vpisujete, nanašajo na obdobje od 1. 1. 2025 do 30. 6. 2025."]
[]
[1,"Prosimo, navedite obseg zaposlitev, ki jih imate sofinancirane s strani MDDSZ:"]
[null,"Vrsta kadra","Obseg zaposlitev, financiranih od MDDSZ"]
[null,"strokovni vodja"]
[null,"strokovni delavec"]
[null,"višji laični delavec"]
[null,"nižji laični delavec"]
[]
[]
[2,"Prosimo, navedite plačan kader - zaposlene in ostale plačane izvajalce v programu, njihovo smer in stopnjo izobrazbe, delovno mesto, vrsto zaposlitve, število opravljenih ur v programu in vire financiranja zaposlitve. Če je zaposleni v programu sofinanciran iz drugih virov, npr. občine, navedite število ur sofinanciranja za vsak vir posebej. Če je zaposlena oseba na dveh delovnih mestih, npr. pol na strokovnem delavcu, pol na višjem laičnem v istem programu - ga vpišite 2x z ustreznimi podatki."]
[null,"Ime in priimek","Izobrazba\n(smer/ stopnja)","Delovno mesto\n(izberite ustrezen odgovor)","Vrsta zaposlitve\n(izberite ustrezen odgovor)","Skupaj število opravljenih ur, \nne glede na financerja","Število opravljenih ur, financiranih iz MDDSZ","Število opravljenih ur \npo drugih financerjih\n(npr. OBČINA: 1044; FIHO: 500; ZRSZ: 544)"]
[]
[]
[]
[]
[]
[]
[]
[]
[]
[]
[]
[]
[]
[]
[]
[]
[]
[]
[]
[]
[]
[]
[]
[]
[]
[]
[]
[]
[]
[]
[null,"po potrebi vstavite vrstice"]
[]
[]
[3,"Prosimo, navedite število vseh ur, ki so jih opravili prostovoljci v programu. Navedite prostovoljce glede na spol in število opravljenih ur ter opredelite vrsto prostovoljnega dela."]
[]
[null,"Skupaj opravljeno število ur prostovoljnega dela"]
[]
[null,"Prostovoljci po spolu","Število prostovoljcev","Število opravljenih ur","Število prostovoljcev","Vrsta dela glede na določila Zakona o prostovoljstvu*","Število prostovoljcev"]
[null,"Ženske",null,"0 do 24 ur",null,"organizacijsko delo"]
[null,"Moški",null,"25 do 100 ur",null,"strokovno delo - na področju socialnega varstva"]
[null,null,null,"101 do 500 ur",null,"strokovno delo - drugo"]
[null,null,null,"501 ur in več",null,"drugo delo",null,"Kontrola (vsa tri polja se morajo ujemati)"]
[null,"Skupaj število prostovoljcev",{"$f":"C53+C54","v":0},"Skupaj število prostovoljcev",{"$f":"SUM(E53:E56)","v":0},"Skupaj število prostovoljcev",{"$f":"SUM(G53:G56)","v":0},{"$f":"IF(AND(C57=E57,E57=G57),\"OK\",\"SEŠTEVEK NI OK-PREVERITE\")","v":"OK"}]
[null,"Opomba:\n* Zakon o prostovoljstvu (Uradni list RS, število 10/11, 16/11 – popr. in 82/15), 23.a člen, vrste prostovoljskega dela:\n(1) Vrste prostovoljskega dela iz druge alineje drugega odstavka 23. člena so: organizacijsko delo, ki je opravljanje prostovoljskega dela vodenja projektov in programov, njihova organizacija ali organizacija dela projekta ali programa in opravljanje mentorstva prostovoljcem; vsebinsko delo, ki je opravljanje prostovoljskega dela, za izvajanje katerega so potrebna posebna znanja in veščine ali pa gre za osnovno prostovoljsko delo posameznega programa ali projekta. Posebna znanja in veščine so znanja in veščine, ki jih prostovoljec pridobi v vzgojno izobraževalnem sistemu ali na usposabljanju prostovoljske organizacije; drugo delo, ki je opravljanje prostovoljskega dela kot pomožnega dela ali dela za podporo prostovoljskemu programu ali projektu ali dela za opravljanje katerega ni potrebno posebno usposabljanje."]

{"sheet":"FINANCE","index":16,"n_rows":44,"n_cols":7,"rows_kept":44,"cut":false,"hidden":true,"merged":[[42,1,42,2],[43,1,43,2],[37,1,37,2],[38,1,38,2],[39,1,39,2],[40,1,40,2],[41,1,41,5],[35,1,35,2],[36,1,36,2],[34,1,34,2],[33,1,33,2],[26,1,26,6],[27,1,27,2],[27,4,27,5],[30,1,30,2],[28,1,28,2],[0,0,0,7],[2,0,2,7],[4,1,4,6],[7,1,7,6],[8,5,8,6],[8,1,8,2],[9,1,9,2],[11,1,11,2],[21,1,21,2],[22,1,22,6],[8,3,8,4],[18,1,18,2],[20,1,20,2],[17,1,17,2],[19,1,19,2],[12,1,12,2],[13,1,13,2],[14,1,14,2],[15,1,15,2],[16,1,16,2],[23,1,23,2],[29,1,29,2],[31,1,31,2],[32,1,32,2],[10,1,10,2]]}
["FINANČNO POROČILO - za obdobje od 1. 1. 2025 do 30. 6. 2025"]
[]
["OPOZORILO! Listine (račune, izplačilni liste, itd.), iz katerih je razvidno, da so bila sredstva porabljena namensko za izvajanje programa, \nhranite za morebitni nadzor programa.\nPri izpolnjevanju bodite pozorni, da se vsi podatki, ki jih vpisujete, nanašajo na obdobje od 1. 1. 2025 do 30. 6. 2025."]
[]
[1,"Prosimo, preverite skupni odstotek prihodkov, pridobljenih od drugih sofinancerjev programa (% od celotne vrednosti programa)."]
[null,{"$f":"SUM(G12:G22)","v":{"$error":"#DIV/0!"}}]
[]
[null,"Prosimo, navedite vire financiranja oz. vse sofinancerje programa, odobrena sredstva za izvajanje programa ter višino sredstev. "]
[null,"PRIHODKI PROGRAMA",null,"Vsa zaprošena sredstva",null,"Vsa prejeta sredstva"]
[null,"Sofinancer programa",null,"Znesek v EUR","V odstotkih","Znesek v EUR","V odstotkih"]
[null,"MDDSZ (kot izhaja iz sklepa razpisa oz. pogodbe)",null,null,{"$f":"D11/$D$24","v":{"$error":"#DIV/0!"}},null,{"$f":"F11/$F$24","v":{"$error":"#DIV/0!"}}]
[null,"Občine (seštejte znesek vseh občin skupaj)",null,null,{"$f":"D12/$D$24","v":{"$error":"#DIV/0!"}},null,{"$error":"#DIV/0!"}]
[null,"Donacije",null,null,{"$error":"#DIV/0!"},null,{"$error":"#DIV/0!"}]
[null,"FIHO",null,null,{"$error":"#DIV/0!"},null,{"$error":"#DIV/0!"}]
[null,"ZRSZ",null,null,{"$error":"#DIV/0!"},null,{"$error":"#DIV/0!"}]
[null,"Drugi proračunski viri skupaj (navedite: _____)",null,null,{"$error":"#DIV/0!"},null,{"$error":"#DIV/0!"}]
[null,"Uporabniki",null,null,{"$error":"#DIV/0!"},null,{"$error":"#DIV/0!"}]
[null,"Članarine",null,null,{"$error":"#DIV/0!"},null,{"$error":"#DIV/0!"}]
[null,"Lastna sredstva",null,null,{"$error":"#DIV/0!"},null,{"$error":"#DIV/0!"}]
[null,"Ovrednoteno prostovoljsko delo",null,null,{"$error":"#DIV/0!"},null,{"$error":"#DIV/0!"}]
[null,"Brezplačen najem prostorov",null,null,{"$error":"#DIV/0!"},null,{"$error":"#DIV/0!"}]
[null,"Drugo (navedite: _____)",null,null,{"$error":"#DIV/0!"},null,{"$error":"#DIV/0!"}]
[null,"po potrebi vstavite vrstice in prekopirajte formule za preračun - ne briši vrstic"]
[null,"SKUPAJ",null,{"$f":"SUM(D11:D23)","v":0},{"$f":"SUM(E11:E23)","v":{"$error":"#DIV/0!"}},{"$f":"SUM(F11:F23)","v":0},{"$f":"SUM(G11:G23)","v":{"$error":"#DIV/0!"}}]
[]
[]
[2,"Prosimo, navedite stroške, krite iz sredstev MDDSZ, ki ste jih pridobili preko javnega razpisa za sofinanciranje programov socialnega varstva. Po potrebi dodajte vrstice, še posebej, če imate več različnih stroškov pri odhodkih iz sredstev MDDSZ."]
[null,"ODHODKI PROGRAMA",null,"Znesek v EUR","V odstotkih"]
[null,"1. Stroški dela redno zaposlenih \n(sem spadajo: plače zaposlenih, delodajalčeve dajatve za socialno varnost, regres za letni dopust, prevoz na delo, stroški prehrane, jubilejne nagrade)",null,null,null,{"$f":"D29/$D$44","v":{"$error":"#DIV/0!"}}]
[null,"2. Stroški zunanjih izvajalcev, vezanih neposredno na program ",null,null,null,{"$f":"D30/$D$44","v":{"$error":"#DIV/0!"}}]
[null,"- delo na podlagi pogodb",null,null,{"$f":"D31/$D$44","v":{"$error":"#DIV/0!"}}]
[null,"- strošek študentskega dela",null,null,{"$f":"D32/$D$44","v":{"$error":"#DIV/0!"}}]
[null,"3. Povračilo stroškov v zvezi z delom na programu za prostovoljce na osnovi sklenjenih dogovorov",null,null,null,{"$f":"D33/$D$44","v":{"$error":"#DIV/0!"}}]
[null,"4. Stroški materiala ter storitev",null,null,null,{"$f":"D34/$D$44","v":{"$error":"#DIV/0!"}}]
[null," - energija – elektrika",null,null,{"$f":"D35/$D$44","v":{"$error":"#DIV/0!"}}]
[null,"- ogrevanje prostorov",null,null,{"$f":"D36/$D$44","v":{"$error":"#DIV/0!"}}]
[null,"- najemnina lokacija 1",null,null,{"$error":"#DIV/0!"}]
[null,"- najemnina lokacija 2",null,null,{"$error":"#DIV/0!"}]
[null,"-supervizija",null,null,{"$error":"#DIV/0!"}]
[null,"- telefonski stroški",null,null,{"$error":"#DIV/0!"}]
[null,"- stroški drugega materiala (natančno opredelite in navedite te stroške)",null,null,{"$error":"#DIV/0!"}]
[null,"po potrebi vstavite vrstice in prekopirajte formule za preračun - ne briši vrstic"]
[null,"Preostanek sredstev",null,{"$f":"F11-D44","v":0}]
[null,"SKUPAJ VSI ODHODKI, KRITI IZ SREDSTEV MDDSZ",null,{"$f":"D29+D30+D33+D34","v":0},{"$f":"SUM(E29:E41)","v":{"$error":"#DIV/0!"}},{"$f":"SUM(F29:F41)","v":{"$error":"#DIV/0!"}}]

{"sheet":"OPOMBE","index":17,"n_rows":14,"n_cols":2,"rows_kept":14,"cut":false,"hidden":true,"merged":[[0,0,0,8],[8,3,8,8],[9,3,9,8],[8,1,8,2],[9,1,9,2],[13,1,13,8],[14,1,14,8],[2,1,2,8],[4,3,4,8],[3,3,3,8],[10,3,10,8],[5,3,5,8],[6,3,6,8],[7,3,7,8],[3,1,3,2],[4,1,4,2],[5,1,5,2],[6,1,6,2],[7,1,7,2],[10,1,10,2]]}
["OPOMBE"]
[]
[1,"Prosimo, opišite največje izzive v programu za obdobje 1. 1. do 30. 6. 2025:"]
[null,"največji izzivi pri izvajanju programa na splošno"]
[null,"izzivi glede dodatnih aktivnosti programa"]
[null,"izzivi glede zavrnitev in izključitev uporabnikov ter vzroki za to"]
[null,"izzivi glede potreb po širitvi programa"]
[null,"izzivi glede potreb po nadgradnji programa"]
[null,"izzivi na področju kadra"]
[null,"izzivi na področju financ"]
[null,"izzivi v okolju, kjer se program izvaja"]
[]
[]
[4,"Prosimo, navedite še druge opombe, komentarje, predloge, ki niso zajeti zgoraj."]

{"sheet":"matrika","index":18,"n_rows":242,"n_cols":21,"rows_kept":242,"cut":false,"hidden":true,"merged":[[0,9,0,13],[0,18,0,19]]}
["področje","podpodročje1","podpodročje2","podpodročje3","podpodročje4","podpodročje5","podpodročje6",null,null,"zavihki, ki se morajo prikazati za to podpodročje",null,null,null,null,"IF korak 3","IF korak 3","IF 2 oz. 5 pri koraku 1",null,"IF korak \"3 = DA\" + IF korak \"2\" - ena od spodnjih opcij",null,"prikaži list KAPACITETE"]
["NASILJE","MATERINSKI DOMOVI","VARNE HIŠE, ZATOČIŠČA IN KRIZNI CENTRI","SVETOVALNICE","PROGRAMI PREVENTIVE","PROGRAMI TELEFONSKEGA SVETOVANJA",null,null,null,"navodila","splošno","vsebina","finance","opombe","evalvacija","postopki",null,null,"MATERINSKI DOMOVI","VARNE HIŠE, ZATOČIŠČA IN KRIZNI CENTRI","kapacitete"]
["ZASVOJENI","PREPOVEDANE DROGE – VISOKI PRAG","PREPOVEDANE DROGE - NIZKI PRAG","PREPOVEDANE DROGE – PREVENTIVNI PROGRAMI","ALKOHOLIZEM","MOTNJE HRANJENJA","PREPREČEVANJE PREKOMERNE RABE IKT",null,null,"navodila","splošno","vsebina","finance","opombe","evalvacija","postopki","2-dodatno",null,"PREPOVEDANE DROGE – VISOKI PRAG","ALKOHOLIZEM","kapacitete"]
["DUŠEVNO_ZDRAVJE","STANOVANJSKE SKUPINE","DNEVNI CENTRI","INFORMACIJSKE PISARNE IN SVETOVALNICE","PROGRAMI TELEFONSKEGA SVETOVANJA","ZAGOVORNIŠTVO",null,null,null,"navodila","splošno","vsebina","finance","opombe","evalvacija","postopki",null,null,"STANOVANJSKE SKUPINE",null,"kapacitete"]
["BREZDOMCI","NAMESTITVENI PROGRAMI","DNEVNI PROGRAMI","DELOŽACIJE",null,null,null,null,null,"navodila","splošno","vsebina","finance","opombe","evalvacija","postopki",null,null,"NAMESTITVENI PROGRAMI",null,"kapacitete"]
["OTROCI_MLADOSTNIKI","DNEVNI CENTRI ZA OTROKE IN MLADOSTNIKE S PREVENTIVNIM DELOM IN SVETOVANJEM","PREVENTIVNI PROGRAMI","PROGRAMI TELEFONSKEGA SVETOVANJA",null,null,null,null,null,"navodila","splošno","vsebina","finance","opombe","evalvacija","postopki","5-dodatno"]
["STAREJŠI","MEDGENERACIJSKA SREDIŠČA","PROGRAMI ZA STAREJŠE","PROGRAMI ZA OSEBE Z DEMENCO IN NJIHOVE SVOJCE",null,null,null,null,null,"navodila","splošno","vsebina","finance","opombe","evalvacija","postopki"]
["INVALIDI","PROGRAMI OSEBNE ASISTENCE IN MREŽE SPREMLJEVALCEV","PROGRAMI ZA SPODBUJANJE SOCIALNE VKLJUČENOSTI IN NEODVISNEGA ŽIVLJENJA INVALIDOV",null,null,null,null,null,null,"navodila","splošno","vsebina","finance","opombe","evalvacija","postopki",null,null,"PROGRAMI ZA SPODBUJANJE SOCIALNE VKLJUČENOSTI IN NEODVISNEGA ŽIVLJENJA INVALIDOV",null,"kapacitete"]
["PSIHOSOCIALNA_POMOČ","SPECIALIZIRANI PROGRAMI PSIHOSOCIALNE POMOČI OTROKOM, ODRASLIM ALI DRUŽINAM",null,null,null,null,null,null,null,"navodila","splošno","vsebina","finance","opombe","evalvacija","postopki"]
["ROMI","PROGRAMI ZA ROME",null,null,null,null,null,null,null,"navodila","splošno","vsebina","finance","opombe","evalvacija","postopki"]
["DRUGI_PROGRAMI","DRUGI PROGRAMI",null,null,null,null,null,null,null,"navodila","splošno","vsebina","finance","opombe","evalvacija","postopki"]
[]
[]
[]
["Dokumentacija o programu"]
["Dokumentacija za uporabnike"]
["Vprašalnik za uporabnike ob vstopu"]
["Vprašalnik za uporabnike ob evalvaciji /izstopu iz programa"]
["Vprašalnik za uporabnike po razgovoru oz. Vprašalnik o svetovalnem pogovoru"]
["Vprašalnik za oceno programa oz. Vprašalnik ocena programa za anonimne uporabnike"]
["Vprašalnik o oceni programa za svojce"]
[]
[]
[]
[]
[]
[]
[]
[]
[]
["AJDOVŠČINA"]
["ANKARAN"]
["APAČE"]
["BELTINCI"]
["BENEDIKT"]
["BISTRICA OB SOTLI"]
["BLED"]
["BLOKE"]
["BOHINJ"]
["BOROVNICA"]
["BOVEC"]
["BRASLOVČE"]
["BRDA"]
["BREZOVICA"]
["BREŽICE"]
["CANKOVA"]
["CELJE"]
["CERKLJE NA GORENJSKEM"]
["CERKNICA"]
["CERKNO"]
["CERKVENJAK"]
["CIRKULANE"]
["ČRENŠOVCI"]
["ČRNA NA KOROŠKEM"]
["ČRNOMELJ"]
["DESTRNIK"]
["DIVAČA"]
["DOBJE"]
["DOBREPOLJE"]
["DOBRNA"]
["DOBROVA-POLHOV GRADEC"]
["DOBROVNIK"]
["DOL PRI LJUBLJANI"]
["DOLENJSKE TOPLICE"]
["DOMŽALE"]
["DORNAVA"]
["DRAVOGRAD"]
["DUPLEK"]
["GORENJA VAS-POLJANE"]
["GORIŠNICA"]
["GORJE"]
["GORNJA RADGONA"]
["GORNJI GRAD"]
["GORNJI PETROVCI"]
["GRAD"]
["GROSUPLJE"]
["HAJDINA"]
["HOČE SLIVNICA"]
["HODOŠ"]
["HORJUL"]
["HRASTNIK"]
["HRPELJE-KOZINA"]
["IDRIJA"]
["IG"]
["ILIRSKA BISTRICA"]
["IVANČNA GORICA"]
["IZOLA"]
["JESENICE"]
["JEZERSKO"]
["JURŠINCI"]
["KAMNIK"]
["KANAL OB SOČI"]
["KIDRIČEVO"]
["KOBARID"]
["KOBILJE"]
["KOČEVJE"]
["KOMEN"]
["KOMENDA"]
["KOPER"]
["KOSTANJEVICA NA KRKI"]
["KOSTEL"]
["KOZJE"]
["KRANJ"]
["KRANJSKA GORA"]
["KRIŽEVCI"]
["KRŠKO"]
["KUNGOTA"]
["KUZMA"]
["LAŠKO"]
["LENART"]
["LENDAVA"]
["LITIJA"]
["LJUBLJANA"]
["LJUBNO"]
["LJUTOMER"]
["LOGATEC"]
["LOG-DRAGOMER"]
["LOŠKA DOLINA"]
["LOŠKI POTOK"]
["LOVRENC NA POHORJU"]
["LUČE"]
["LUKOVICA"]
["MAJŠPERK"]
["MAKOLE"]
["MARIBOR"]
["MARKOVCI"]
["MEDVODE"]
["MENGEŠ"]
["METLIKA"]
["MEŽICA"]
["MIKLAVŽ NA DRAVSKEM POLJU"]
["MIREN-KOSTANJEVICA"]
["MIRNA"]
["MIRNA PEČ"]
["MISLINJA"]
["MOKRONOG - TREBELNO"]
["MORAVČE"]
["MORAVSKE TOPLICE"]
["MOZIRJE"]
["MURSKA SOBOTA"]
["MUTA"]
["NAKLO"]
["NAZARJE"]
["NOVA GORICA"]
["NOVO MESTO"]
["ODRANCI"]
["OPLOTNICA"]
["ORMOŽ"]
["OSILNICA"]
["PESNICA"]
["PIRAN"]
["PIVKA"]
["PODČETRTEK"]
["PODLEHNIK"]
["PODVELKA"]
["POLJČANE"]
["POLZELA"]
["POSTOJNA"]
["PREBOLD"]
["PREDDVOR"]
["PREVALJE"]
["PTUJ"]
["PUCONCI"]
["RAČE-FRAM"]
["RADEČE"]
["RADENCI"]
["RADLJE OB DRAVI"]
["RADOVLJICA"]
["RAVNE NA KOROŠKEM"]
["RAZKRIŽJE"]
["REČICA OB SAVINJI"]
["RENČE-VOGRSKO"]
["RIBNICA"]
["RIBNICA NA POHORJU"]
["ROGAŠKA SLATINA"]
["ROGAŠOVCI"]
["ROGATEC"]
["RUŠE"]
["SELNICA OB DRAVI"]
["SEMIČ"]
["SEVNICA"]
["SEŽANA"]
["SLOVENJ GRADEC"]
["SLOVENSKA BISTRICA"]
["SLOVENSKE KONJICE"]
["SODRAŽICA"]
["SOLČAVA"]
["SREDIŠČE OB DRAVI"]
["STARŠE"]
["STRAŽA"]
["SVETA ANA"]
["SVETA TROJICA V SLOVENSKIH GORICAH"]
["SVETI ANDRAŽ V SLOVENSKIH GORICAH"]
["SVETI JURIJ OB ŠČAVNICI"]
["SVETI JURIJ V SLOVENSKIH GORICAH"]
["SVETI TOMAŽ"]
["ŠALOVCI"]
["ŠEMPETER-VRTOJBA"]
["ŠENČUR"]
["ŠENTILJ"]
["ŠENTJERNEJ"]
["ŠENTJUR"]
["ŠENTRUPERT"]
["ŠKOCJAN"]
["ŠKOFJA LOKA"]
["ŠKOFLJICA"]
["ŠMARJE PRI JELŠAH"]
["ŠMARJEŠKE TOPLICE"]
["ŠMARTNO OB PAKI"]
["ŠMARTNO PRI LITIJI"]
["ŠOŠTANJ"]
["ŠTORE"]
["TABOR"]
["TIŠINA"]
["TOLMIN"]
["TRBOVLJE"]
["TREBNJE"]
["TRNOVSKA VAS"]
["TRZIN"]
["TRŽIČ"]
["TURNIŠČE"]
["VELENJE"]
["VELIKA POLANA"]
["VELIKE LAŠČE"]
["VERŽEJ"]
["VIDEM"]
["VIPAVA"]
["VITANJE"]
["VODICE"]
["VOJNIK"]
["VRANSKO"]
["VRHNIKA"]
["VUZENICA"]
["ZAGORJE OB SAVI"]
["ZAVRČ"]
["ZREČE"]
["ŽALEC"]
["ŽELEZNIKI"]
["ŽETALE"]
["ŽIRI"]
["ŽIROVNICA"]
["ŽUŽEMBERK"]